fUSD/lending_fUSD_20250112
["ID","MTS","AMOUNT","RATE_DAILY","PERIOD"]
[348611321,1736673032677,-500.0,9.997e-05,2]
[348611322,1736673032686,-500.0,9.997e-05,2]
[348611323,1736673032696,-500.0,9.997e-05,2]
[348611324,1736673032704,-500.0,9.997e-05,2]
[348611325,1736673032713,-500.0,9.997e-05,2]
[348611326,1736673032722,-500.0,9.997e-05,2]
[348611327,1736673032731,-500.0,9.997e-05,2]
[348611328,1736673032741,-506.97,9.997e-05,2]
[348611329,1736673032752,-500.0,9.997e-05,2]
[348611330,1736673032762,-770.11,9.997e-05,2]
[348611331,1736673032771,-500.0,9.997e-05,2]
[348611332,1736673032781,-500.0,9.997e-05,2]
[348611333,1736673032790,-797.77,9.997e-05,2]
[348611334,1736673032799,-660.13,9.997e-05,2]
[348611335,1736673032808,-504.14,9.997e-05,2]
[348611336,1736673032817,-500.0,9.997e-05,2]
[348611337,1736673032826,-563.31,9.997e-05,2]
[348611338,1736673032835,-654.9,9.997e-05,2]
[348611339,1736673032844,-500.0,9.997e-05,2]
[348611340,1736673032853,-500.0,9.997e-05,2]
[348611341,1736673032862,-500.0,9.997e-05,2]
[348611342,1736673032871,-658.26,9.997e-05,2]
[348611343,1736673032879,-500.0,9.997e-05,2]
[348611344,1736673032888,-500.0,9.997e-05,2]
[348611345,1736673032897,-530.72,9.997e-05,2]
[348611346,1736673032907,-532.06,9.997e-05,2]
[348611347,1736673032916,-500.0,9.997e-05,2]
[348611348,1736673032925,-500.0,9.997e-05,2]
[348611349,1736673032934,-631.03,9.997e-05,2]
[348611350,1736673032943,-500.0,9.997e-05,2]
[348611351,1736673032956,-500.0,9.997e-05,2]
[348611352,1736673032966,-500.0,9.997e-05,2]
[348611353,1736673032975,-536.30603515,9.997e-05,2]
[348611354,1736673032984,-500.0,9.997e-05,2]
[348611355,1736673032993,-602.49,9.997e-05,2]
[348611356,1736673033003,-500.0,9.997e-05,2]
[348611357,1736673033012,-614.88,9.997e-05,2]
[348611358,1736673033021,-500.0,9.997e-05,2]
[348611359,1736673033031,-607.07,9.997e-05,2]
[348611360,1736673033040,-500.0,9.997e-05,2]
[348611361,1736673033050,-715.19,9.997e-05,2]
[348611362,1736673033059,-799.32,9.997e-05,2]
[348611363,1736673033069,-642.28,9.997e-05,2]
[348611364,1736673033080,-500.0,9.997e-05,2]
[348611365,1736673033089,-500.0,9.997e-05,2]
[348611366,1736673033099,-500.0,9.997e-05,2]
[348611367,1736673033109,-500.0,9.997e-05,2]
[348611368,1736673033119,-500.0,9.997e-05,2]
[348611369,1736673033128,-500.0,9.997e-05,2]
[348611370,1736673033138,-500.0,9.997e-05,2]
[348611371,1736673033147,-901.38,9.997e-05,2]
[348611372,1736673033157,-500.0,9.997e-05,2]
[348611373,1736673033167,-891.66,9.997e-05,2]
[348611374,1736673033176,-912.74181643,9.997e-05,2]
[348611375,1736673033186,-869.64,9.997e-05,2]
[348611376,1736673033195,-500.0,9.997e-05,2]
[348611377,1736673033204,-268.20463238,9.997e-05,2]
[348611378,1736673036190,-245.67536762,9.997e-05,2]
[348611379,1736673036422,-254.32463238,9.997e-05,2]
[348611380,1736673036443,-245.67536762,9.997e-05,2]
[348611381,1736673036452,-353.26125577,9.997e-05,2]
[348611579,1736673038224,-146.73874423,9.997e-05,2]
[348611582,1736673038237,-500.0,9.997e-05,2]
[348611584,1736673038248,-523.59,9.997e-05,2]
[348611586,1736673038258,-500.0,9.997e-05,2]
[348611588,1736673038267,-500.0,9.997e-05,2]
[348611590,1736673038276,-500.0,9.997e-05,2]
[348611592,1736673038286,-500.0,9.997e-05,2]
[348611594,1736673038296,-626.48,9.997e-05,2]
[348611596,1736673038306,-500.0,9.997e-05,2]
[348611598,1736673038315,-500.0,9.997e-05,2]
[348611600,1736673038325,-500.0,9.997e-05,2]
[348611602,1736673038335,-596.59,9.997e-05,2]
[348611604,1736673038344,-500.0,9.997e-05,2]
[348611606,1736673038353,-625.45,9.997e-05,2]
[348611608,1736673038362,-873.43,9.997e-05,2]
[348611610,1736673038371,-500.0,9.998e-05,2]
[348611612,1736673038381,-2864.15,9.998e-05,2]
[348611614,1736673038390,-912.7,9.998e-05,2]
[348611616,1736673038399,-595.33,9.998e-05,2]
[348611618,1736673038409,-500.0,9.998e-05,2]
[348611620,1736673038418,-500.0,9.998e-05,2]
[348611622,1736673038427,-582.28888395,9.998e-05,2]
[348611624,1736673038437,-500.0,9.998e-05,2]
[348611626,1736673038447,-500.0,9.998e-05,2]
[348611628,1736673038456,-500.0,9.998e-05,2]
[348611630,1736673038466,-500.0,9.998e-05,2]
[348611632,1736673038475,-500.0,9.998e-05,2]
[348611634,1736673038484,-500.48189809,9.998e-05,2]
[348611636,1736673038495,-500.0,9.998e-05,2]
[348611638,1736673038504,-500.0,9.998e-05,2]
[348611640,1736673038513,-500.0,9.998e-05,2]
[348611642,1736673038523,-500.0,9.998e-05,2]
[348611644,1736673038533,-961.73,9.998e-05,2]
[348611646,1736673038542,-500.0,9.998e-05,2]
[348611648,1736673038551,-502.88513637,9.998e-05,2]
[348611650,1736673038560,-500.0,9.998e-05,2]
[348611652,1736673038570,-500.0,9.998e-05,2]
[348611654,1736673038579,-500.0,9.998e-05,2]
[348611656,1736673038588,-648.8162037,9.998e-05,2]
[348611659,1736673038598,-500.0,9.998e-05,2]
[348611661,1736673038608,-500.0,9.998e-05,2]
[348611663,1736673038620,-500.0,9.998e-05,2]
[348611665,1736673038629,-500.0,9.998e-05,2]
[348611667,1736673038638,-500.0,9.998e-05,2]
[348611669,1736673038647,-500.0,9.998e-05,2]
[348611670,1736673038657,-889.38,9.998e-05,2]
[348611673,1736673038667,-501.01886297,9.998e-05,2]
[348611674,1736673038677,-500.0,9.998e-05,2]
[348611676,1736673038689,-501.28001933,9.998e-05,2]
[348611678,1736673038698,-500.0,9.998e-05,2]
[348611680,1736673038707,-500.0,9.998e-05,2]
[348611683,1736673038717,-500.5018094,9.998e-05,2]
[348611684,1736673038726,-500.0,9.998e-05,2]
[348611687,1736673038735,-1211.43,9.998e-05,2]
[348611688,1736673038744,-500.0,9.998e-05,2]
[348611690,1736673038753,-500.0,9.998e-05,2]
[348611692,1736673038762,-500.0,9.998e-05,2]
[348611694,1736673038771,-502.6302448,9.998e-05,2]
[348611696,1736673038780,-500.0,9.998e-05,2]
[348611698,1736673038789,-500.0,9.998e-05,2]
[348611700,1736673038798,-500.0,9.998e-05,2]
[348611702,1736673038807,-500.0,9.998e-05,2]
[348611705,1736673038816,-504.91713328,9.998e-05,2]
[348611708,1736673038825,-500.0,9.998e-05,2]
[348611711,1736673038834,-500.0,9.998e-05,2]
[348611715,1736673038844,-500.0,9.998e-05,2]
[348611719,1736673038853,-500.0,9.998e-05,2]
[348611723,1736673038862,-501.22593025,9.998e-05,2]
[348611727,1736673038871,-500.0,9.998e-05,2]
[348611730,1736673038880,-223.83564374,9.998e-05,2]
[348611733,1736673038890,-500.0,9.998e-05,2]
[348611736,1736673038899,-735.77,9.998e-05,2]
[348611739,1736673038909,-503.2179311,9.998e-05,2]
[348611742,1736673038918,-501.32636096,9.998e-05,2]
[348611745,1736673038927,-500.0,9.998e-05,2]
[348611747,1736673038937,-500.0,9.998e-05,2]
[348611749,1736673038946,-395.94971135,9.998e-05,2]
[348611751,1736673038954,-500.0,9.998e-05,2]
[348611753,1736673038963,-500.0,9.998e-05,2]
[348611755,1736673038973,-500.0,9.998e-05,2]
[348611757,1736673038982,-500.0,9.998e-05,2]
[348611759,1736673038992,-1836.38,9.998e-05,2]
[348611761,1736673039001,-500.0,9.998e-05,2]
[348611763,1736673039010,-500.0,9.998e-05,2]
[348611765,1736673039019,-500.0,9.998e-05,2]
[348611767,1736673039028,-500.0,9.998e-05,2]
[348611769,1736673039037,-500.0,9.998e-05,2]
[348611771,1736673039047,-1084.68,9.998e-05,2]
[348611773,1736673039056,-500.0,9.998e-05,2]
[348611775,1736673039065,-500.0,9.998e-05,2]
[348611777,1736673039075,-2139.68,9.998e-05,2]
[348611779,1736673039084,-500.0,9.998e-05,2]
[348611781,1736673039093,-500.0,9.998e-05,2]
[348611783,1736673039102,-500.0,9.998e-05,2]
[348611785,1736673039111,-500.0,9.998e-05,2]
[348611787,1736673039120,-202.95985535,9.998e-05,2]
[348611789,1736673039129,-501.62037173,9.998e-05,2]
[348611791,1736673039138,-500.0,9.998e-05,2]
[348611793,1736673039148,-500.0,9.998e-05,2]
[348611795,1736673039157,-500.0,9.998e-05,2]
[348611797,1736673039166,-500.0,9.998e-05,2]
[348611799,1736673039175,-500.0,9.998e-05,2]
[348611801,1736673039185,-505.13729647,9.998e-05,2]
[348611803,1736673039195,-501.93234881,9.998e-05,2]
[348611805,1736673039204,-500.0,9.998e-05,2]
[348611807,1736673039213,-501.9256733,9.998e-05,2]
[348611809,1736673039222,-503.64590921,9.998e-05,2]
[348611811,1736673039231,-501.77920327,9.998e-05,2]
[348611813,1736673039241,-500.0,9.998e-05,2]
[348611815,1736673039250,-500.0,9.998e-05,2]
[348611816,1736673039259,-504.10845422,9.998e-05,2]
[348611817,1736673039270,-500.0,9.998e-05,2]
[348611818,1736673039280,-500.0,9.998e-05,2]
[348611819,1736673039289,-500.0,9.998e-05,2]
[348611820,1736673039298,-1264.74,9.998e-05,2]
[348611821,1736673039307,-500.0,9.998e-05,2]
[348611822,1736673039316,-500.0,9.998e-05,2]
[348611823,1736673039326,-500.0,9.998e-05,2]
[348611824,1736673039343,-500.0,9.998e-05,2]
[348611825,1736673039357,-500.0,9.998e-05,2]
[348611826,1736673039368,-500.0,9.998e-05,2]
[348611827,1736673039380,-500.0,9.998e-05,2]
[348611828,1736673039395,-500.0,9.998e-05,2]
[348611829,1736673039408,-501.29369997,9.998e-05,2]
[348611830,1736673039421,-500.0,9.998e-05,2]
[348611831,1736673039435,-500.0,9.998e-05,2]
[348611832,1736673039447,-500.8682679,9.998e-05,2]
[348611833,1736673039457,-500.0,9.998e-05,2]
[348611834,1736673039471,-500.0,9.998e-05,2]
[348611835,1736673039484,-622.95864937,9.998e-05,2]
[348611836,1736673039497,-500.0,9.998e-05,2]
[348611837,1736673039509,-147.95007207,9.998e-05,2]
[348611843,1736673040023,-352.04992793,9.998e-05,2]
[348611844,1736673040036,-500.0,9.998e-05,2]
[348611845,1736673040047,-167.44788391,9.998e-05,2]
[348611846,1736673040059,-0.25416821,9.998e-05,2]
[348611847,1736673040072,-499.74583179,9.998e-05,2]
[348611848,1736673040084,-184.55416961,9.998e-05,2]
[348611850,1736673040256,-315.44583039,9.998e-05,2]
[348611851,1736673040269,-500.0,9.998e-05,2]
[348611852,1736673040283,-500.0,9.998e-05,2]
[348611853,1736673040294,-367.2955508,9.998e-05,2]
[348611854,1736673040308,-132.7044492,9.998e-05,2]
[348611855,1736673040318,-3243.62,9.998e-05,2]
[348611856,1736673040330,-500.0,9.998e-05,2]
[348611857,1736673040341,-500.0,9.998e-05,2]
[348611858,1736673040353,-500.0,9.998e-05,2]
[348611859,1736673040364,-500.0,9.998e-05,2]
[348611860,1736673040376,-436.00454246,9.998e-05,2]
[348611861,1736673040387,-500.0,9.998e-05,2]
[348611862,1736673040398,-500.0,9.998e-05,2]
[348611863,1736673040409,-500.0,9.998e-05,2]
[348611864,1736673040421,-180.68137101,9.998e-05,2]
[348611865,1736673040432,-500.0,9.998e-05,2]
[348611866,1736673040444,-500.0,9.998e-05,2]
[348611867,1736673040455,-500.0,9.998e-05,2]
[348611868,1736673040466,-500.0,9.998e-05,2]
[348611869,1736673040478,-500.0,9.998e-05,2]
[348611870,1736673040489,-500.0,9.998e-05,2]
[348611871,1736673040500,-500.0,9.998e-05,2]
[348611872,1736673040511,-500.0,9.998e-05,2]
[348611873,1736673040523,-496.0,9.998e-05,2]
[348611874,1736673040534,-500.0,9.998e-05,2]
[348611875,1736673040546,-500.0,9.998e-05,2]
[348611876,1736673040558,-500.0,9.998e-05,2]
[348611877,1736673040569,-501.43699452,9.998e-05,2]
[348611878,1736673040581,-500.0,9.998e-05,2]
[348611879,1736673040592,-500.0,9.998e-05,2]
[348611880,1736673040603,-500.0,9.998e-05,2]
[348611881,1736673040618,-500.0,9.998e-05,2]
[348611882,1736673040629,-501.6327274,9.998e-05,2]
[348611883,1736673040641,-500.0,9.998e-05,2]
[348611884,1736673040653,-500.0,9.998e-05,2]
[348611885,1736673040665,-500.0,9.998e-05,2]
[348611886,1736673040677,-500.0,9.998e-05,2]
[348611887,1736673040689,-500.0,9.998e-05,2]
[348611888,1736673040701,-323.45359848,9.998e-05,2]
[348611889,1736673040712,-500.0,9.998e-05,2]
[348611890,1736673040721,-500.0,9.998e-05,2]
[348611891,1736673040730,-279.4781576,9.998e-05,2]
[348611892,1736673040739,-500.0,9.998e-05,2]
[348611893,1736673040749,-948.39,9.998e-05,2]
[348611894,1736673040758,-337.27492149,9.998e-05,2]
[348611895,1736673040767,-872.03,9.998e-05,2]
[348611896,1736673040777,-634.58836287,9.998e-05,2]
[348611897,1736673040787,-500.0,9.998e-05,2]
[348611898,1736673040796,-246.97512076,9.998e-05,2]
[348611899,1736673040808,-253.02487924,9.998e-05,2]
[348611900,1736673040818,-80.34824267,9.998e-05,2]
[348611904,1736673041121,-419.65175733,9.998e-05,2]
[348611905,1736673041148,-356.17375403,9.998e-05,2]
[348611906,1736673041170,-3017.24,9.998e-05,2]
[348611907,1736673041180,-500.0,9.998e-05,2]
[348611908,1736673041190,-1048.07,9.998e-05,2]
[348611909,1736673041199,-503.37883469,9.998e-05,2]
[348611910,1736673041209,-1183.29,9.998e-05,2]
[348611911,1736673041218,-506.02864518,9.998e-05,2]
[348611912,1736673041230,-1764.60135482,9.998e-05,2]
[348611913,1736673041240,-500.0,9.998e-05,2]
[348611914,1736673041249,-7141.81,9.998e-05,2]
[348611915,1736673041258,-500.0,9.998e-05,2]
[348611916,1736673041267,-719.05,9.998e-05,2]
[348611917,1736673041276,-1025.8,9.998e-05,2]
[348611918,1736673041286,-500.0,9.998e-05,2]
[348611919,1736673041295,-1874.48,9.998e-05,2]
[348611920,1736673041305,-1219.43,9.998e-05,2]
[348611921,1736673041314,-1847.2,9.998e-05,2]
[348611922,1736673041324,-1110.6,9.998e-05,2]
[348611923,1736673041335,-500.0,9.998e-05,2]
[348611924,1736673041344,-2874.37,9.998e-05,2]
[348611925,1736673041353,-1673.13,9.998e-05,2]
[348611926,1736673041363,-865.42,9.998e-05,2]
[348611927,1736673041372,-1666.35,9.998e-05,2]
[348611928,1736673041382,-500.0,9.998e-05,2]
[348611929,1736673041392,-500.0,9.998e-05,2]
[348611930,1736673041401,-1140.66,9.998e-05,2]
[348611931,1736673041411,-1158.31,9.998e-05,2]
[348611932,1736673041421,-882.29,9.998e-05,2]
[348611933,1736673041430,-2838.19,9.998e-05,2]
[348611934,1736673041441,-500.0,9.998e-05,2]
[348611935,1736673041450,-760.85,9.998e-05,2]
[348611936,1736673041459,-273.240862,9.998e-05,2]
[348611937,1736673041468,-500.0,9.998e-05,2]
[348611938,1736673041477,-500.0,9.998e-05,2]
[348611939,1736673041487,-793.01,9.998e-05,2]
[348611940,1736673041496,-1737.34,9.998e-05,2]
[348611941,1736673041505,-500.0,9.998e-05,2]
[348611942,1736673041515,-500.0,9.998e-05,2]
[348611943,1736673041524,-1001.37,9.998e-05,2]
[348611944,1736673041534,-500.0,9.998e-05,2]
[348611945,1736673041544,-1524.88,9.998e-05,2]
[348611946,1736673041553,-500.0,9.998e-05,2]
[348611947,1736673041563,-1425.3,9.998e-05,2]
[348611948,1736673041573,-1439.6,9.998e-05,2]
[348611949,1736673041583,-500.0,9.998e-05,2]
[348611950,1736673041593,-1365.41,9.998e-05,2]
[348611951,1736673041603,-500.0,9.998e-05,2]
[348611952,1736673041618,-640.84,9.998e-05,2]
[348611953,1736673041627,-1328.02,9.998e-05,2]
[348611954,1736673041638,-715.91,9.998e-05,2]
[348611955,1736673041649,-1275.57,9.998e-05,2]
[348611956,1736673041660,-1776.91,9.998e-05,2]
[348611957,1736673041672,-1832.55,9.998e-05,2]
[348611958,1736673041682,-500.0,9.998e-05,2]
[348611959,1736673041692,-960.36,9.998e-05,2]
[348611960,1736673041702,-500.85023381,9.998e-05,2]
[348611961,1736673041712,-501.02434077,9.998e-05,2]
[348611962,1736673041720,-500.0,9.998e-05,2]
[348611963,1736673041730,-500.0,9.999e-05,2]
[348611964,1736673041740,-500.0,9.999e-05,2]
[348611965,1736673041751,-500.0,9.999e-05,2]
[348611966,1736673041760,-717.06,9.999e-05,2]
[348611967,1736673041771,-500.0,9.999e-05,2]
[348611968,1736673041780,-500.0,9.999e-05,2]
[348611969,1736673041790,-500.0,9.999e-05,2]
[348611970,1736673041799,-500.0,9.999e-05,2]
[348611971,1736673041808,-840.92,9.999e-05,2]
[348611972,1736673041817,-500.0,9.999e-05,2]
[348611973,1736673041826,-781.26,9.999e-05,2]
[348611974,1736673041835,-500.0,9.999e-05,2]
[348611975,1736673041844,-855.97,9.999e-05,2]
[348611976,1736673041853,-500.0,9.999e-05,2]
[348611977,1736673041862,-500.0,9.999e-05,2]
[348611978,1736673041872,-440.84,9.999e-05,2]
[348611979,1736673041883,-594.78,9.999e-05,2]
[348611980,1736673041892,-500.0,9.999e-05,2]
[348611981,1736673041901,-500.0,9.999e-05,2]
[348611982,1736673041911,-500.0,9.999e-05,2]
[348611983,1736673041921,-3143.68,9.999e-05,2]
[348611984,1736673041930,-906.65,9.999e-05,2]
[348611985,1736673041939,-1560.82,9.999e-05,2]
[348611986,1736673041947,-500.0,9.999e-05,2]
[348611987,1736673041957,-1099.49,9.999e-05,2]
[348611988,1736673041967,-2037.04,9.999e-05,2]
[348611989,1736673041978,-712.87,9.999e-05,2]
[348611990,1736673041987,-1291.51,9.999e-05,2]
[348611991,1736673041997,-1099.31,9.999e-05,2]
[348611992,1736673042011,-1388.38,9.999e-05,2]
[348611993,1736673042020,-1268.99,9.999e-05,2]
[348611994,1736673042030,-500.0,9.999e-05,2]
[348611995,1736673042039,-731.92,9.999e-05,2]
[348611996,1736673042048,-1353.06,9.999e-05,2]
[348611997,1736673042057,-1755.7,9.999e-05,2]
[348611998,1736673042068,-1972.86,9.999e-05,2]
[348611999,1736673042079,-5560.92,9.999e-05,2]
[348612000,1736673042089,-674.58,9.999e-05,2]
[348612001,1736673042098,-740.12,9.999e-05,2]
[348612002,1736673042107,-592.29,9.999e-05,2]
[348612003,1736673042117,-910.84,9.999e-05,2]
[348612004,1736673042127,-174.47,0.0001,2]
[348612005,1736673042138,-84335.01151679,0.0001,2]
[348612006,1736673042148,-250.12023418,0.0001,2]
[348612007,1736673042158,-980.57,0.0001,2]
[348612008,1736673042167,-150.18,0.0001,2]
[348612009,1736673042176,-1534.47429526,0.00010002,2]
[348612010,1736673042185,-3738.0836,0.00010037,2]
[348612011,1736673042194,-1534.47429526,0.00010053,2]
[348612012,1736673042204,-1534.47429526,0.00010105,2]
[348612013,1736673042214,-179.88,0.00010137,2]
[348612014,1736673042224,-290.8,0.00010137,2]
[348612015,1736673042235,-1534.47429526,0.00010157,2]
[348612016,1736673042245,-240.83,0.0001018,2]
[348612017,1736673042255,-1534.47429526,0.00010209,2]
[348612018,1736673042266,-500.0,0.0001021,2]
[348612019,1736673042275,-500.9347913,0.0001021,2]
[348612020,1736673042285,-500.0,0.0001021,2]
[348612021,1736673042294,-500.0,0.0001021,2]
[348612022,1736673042303,-849.35,0.0001021,2]
[348612023,1736673042314,-500.0,0.0001021,2]
[348612024,1736673042324,-500.0,0.0001021,2]
[348612025,1736673042334,-501.25519453,0.0001021,2]
[348612026,1736673042344,-500.0,0.0001021,2]
[348612027,1736673042354,-500.0,0.0001021,2]
[348612028,1736673042363,-500.0,0.0001021,2]
[348612029,1736673042372,-500.0,0.0001021,2]
[348612030,1736673042383,-434.88753388,0.0001021,2]
[348612031,1736673042394,-503.02982979,0.0001021,2]
[348612032,1736673042405,-500.0,0.0001021,2]
[348612033,1736673042414,-503.38872572,0.0001021,2]
[348612034,1736673042426,-500.0,0.0001021,2]
[348612035,1736673042437,-500.0,0.0001021,2]
[348612036,1736673042447,-500.0,0.0001021,2]
[348612037,1736673042456,-500.0,0.0001021,2]
[348612038,1736673042467,-615.04723886,0.0001021,2]
[348612039,1736673042476,-502.07346081,0.0001021,2]
[348612040,1736673042486,-616.16,0.0001021,2]
[348612041,1736673042496,-501.97664265,0.0001021,2]
[348612042,1736673042505,-504.00607258,0.0001021,2]
[348612043,1736673042514,-500.0,0.0001021,2]
[348612044,1736673042523,-504.55436714,0.0001021,2]
[348612045,1736673042533,-500.0,0.0001021,2]
[348612046,1736673042542,-500.0,0.0001021,2]
[348612047,1736673042552,-500.0,0.0001021,2]
[348612048,1736673042562,-500.6700383,0.0001021,2]
[348612049,1736673042572,-500.0,0.0001021,2]
[348612050,1736673042581,-357.14830284,0.0001021,2]
[348612051,1736673042590,-500.0,0.0001021,2]
[348612052,1736673042600,-500.0,0.0001021,2]
[348612053,1736673042612,-500.0,0.0001021,2]
[348612054,1736673042625,-505.11250257,0.0001021,2]
[348612055,1736673042635,-502.94013451,0.0001021,2]
[348612056,1736673042646,-1005.61,0.0001021,2]
[348612057,1736673042658,-500.0,0.0001021,2]
[348612058,1736673042670,-500.0,0.0001021,2]
[348612059,1736673042680,-500.0,0.0001021,2]
[348612060,1736673042689,-500.0,0.0001021,2]
[348612061,1736673042698,-500.0,0.0001021,2]
[348612062,1736673042708,-500.0,0.0001021,2]
[348612063,1736673042719,-500.0,0.0001021,2]
[348612064,1736673042729,-666.0,0.0001021,2]
[348612065,1736673042738,-595.05,0.0001021,2]
[348612066,1736673042747,-500.0,0.0001021,2]
[348612067,1736673042758,-500.0,0.0001021,2]
[348612068,1736673042767,-500.0,0.0001021,2]
[348612069,1736673042777,-504.7193388,0.0001021,2]
[348612070,1736673042786,-737.75,0.0001021,2]
[348612071,1736673042795,-500.0,0.0001021,2]
[348612072,1736673042804,-341.03429232,0.0001021,2]
[348612073,1736673042813,-611.99189917,0.0001021,2]
[348612074,1736673042822,-505.91963724,0.0001021,2]
[348612075,1736673042831,-500.0,0.0001021,2]
[348612076,1736673042840,-500.0,0.0001021,2]
[348612077,1736673042849,-509.42,0.0001021,2]
[348612078,1736673042858,-503.01558867,0.0001021,2]
[348612079,1736673042867,-500.0,0.0001021,2]
[348612080,1736673042876,-500.0,0.0001021,2]
[348612081,1736673042885,-500.0,0.0001021,2]
[348612082,1736673042894,-500.0,0.0001021,2]
[348612083,1736673042903,-500.0,0.0001021,2]
[348612084,1736673042912,-500.0,0.0001021,2]
[348612085,1736673042923,-500.0,0.0001021,2]
[348612086,1736673042933,-500.0,0.0001021,2]
[348612087,1736673042942,-500.0,0.0001021,2]
[348612088,1736673042951,-500.0,0.0001021,2]
[348612089,1736673042960,-504.30975864,0.0001021,2]
[348612090,1736673042969,-500.0,0.0001021,2]
[348612091,1736673042979,-500.0,0.0001021,2]
[348612092,1736673042988,-500.56860409,0.0001021,2]
[348612093,1736673042998,-500.0,0.0001021,2]
[348612094,1736673043008,-500.0,0.0001021,2]
[348612095,1736673043018,-500.0,0.0001021,2]
[348612096,1736673043027,-500.0,0.0001021,2]
[348612097,1736673043038,-500.0,0.0001021,2]
[348612098,1736673043048,-500.0,0.0001021,2]
[348612099,1736673043057,-500.0,0.0001021,2]
[348612100,1736673043066,-500.0,0.0001021,2]
[348612101,1736673043076,-500.0,0.0001021,2]
[348612103,1736673043085,-500.0,0.0001021,2]
[348612105,1736673043095,-500.0,0.0001021,2]
[348612107,1736673043103,-500.77169469,0.0001021,2]
[348612108,1736673043113,-613.84,0.0001021,2]
[348612109,1736673043122,-503.8741479,0.0001021,2]
[348612110,1736673043131,-500.0,0.0001021,2]
[348612111,1736673043141,-500.0,0.0001021,2]
[348612112,1736673043150,-500.0,0.0001021,2]
[348612113,1736673043159,-500.0,0.0001021,2]
[348612114,1736673043169,-500.0,0.0001021,2]
[348612115,1736673043179,-500.0,0.0001021,2]
[348612116,1736673043190,-642.0362101,0.0001021,2]
[348612117,1736673043199,-500.0,0.0001021,2]
[348612118,1736673043208,-500.89737399,0.0001021,2]
[348612119,1736673043218,-212.47570439,0.0001021,2]
[348612120,1736673043227,-500.0,0.0001021,2]
[348612121,1736673043238,-500.0,0.0001021,2]
[348612122,1736673043248,-793.2,0.0001021,2]
[348612123,1736673043260,-500.0,0.0001021,2]
[348612124,1736673043270,-747.96,0.0001021,2]
[348612125,1736673043280,-242.44643237,0.0001021,2]
[348612126,1736673043291,-500.0,0.0001021,2]
[348612127,1736673043301,-498.69132494,0.0001021,2]
[348612128,1736673043313,-500.0,0.0001021,2]
[348612129,1736673043322,-690.65,0.0001021,2]
[348612130,1736673043331,-502.24599228,0.0001021,2]
[348612131,1736673043341,-500.0,0.0001021,2]
[348612132,1736673043350,-500.0,0.0001021,2]
[348612133,1736673043359,-500.0,0.0001021,2]
[348612134,1736673043370,-500.0,0.0001021,2]
[348612135,1736673043380,-500.0,0.0001021,2]
[348612136,1736673043390,-435.87873743,0.0001021,2]
[348612137,1736673043401,-500.0,0.0001021,2]
[348612138,1736673043412,-500.0,0.0001021,2]
[348612139,1736673043423,-611.63,0.0001021,2]
[348612140,1736673043433,-500.0,0.0001021,2]
[348612141,1736673043443,-500.0,0.0001021,2]
[348612142,1736673043452,-500.0,0.0001021,2]
[348612143,1736673043462,-500.0,0.0001021,2]
[348612144,1736673043474,-499.78697576,0.0001021,2]
[348612145,1736673043483,-306.8961115,0.0001021,2]
[348612146,1736673043494,-500.0,0.0001021,2]
[348612147,1736673043503,-500.0,0.0001021,2]
[348612148,1736673043515,-500.0,0.0001021,2]
[348612149,1736673043524,-850.01,0.0001021,2]
[348612150,1736673043535,-500.0,0.0001021,2]
[348612151,1736673043544,-500.0,0.0001021,2]
[348612152,1736673043555,-500.0,0.0001021,2]
[348612153,1736673043565,-500.0,0.0001021,2]
[348612154,1736673043574,-500.0,0.0001021,2]
[348612155,1736673043584,-211.31287039,0.0001021,2]
[348612156,1736673043593,-586.48,0.0001021,2]